bitfinex/quotes_SOLUSD_20250604
["timestamp","ask_amount","ask_price","bid_price","bid_amount"]
[1749015837401,9.21773059,156.3,156.26,156.3]
[1749015838454,9.21773059,156.29,156.26,156.3]
[1749015841165,14.3963059,156.29,156.26,156.3]
[1749015844477,5.29170364,156.33,156.26,156.3]
[1749015844478,14.3963059,156.28,156.26,156.3]
[1749015844686,14.3963059,156.28,156.26,10.3]
[1749015845463,14.3963059,156.29,156.26,10.3]
[1749015846987,14.3963059,156.28,156.26,10.3]
[1749015850288,14.3963059,156.29,156.26,10.3]
[1749015852491,14.3963059,156.28,156.26,10.3]
[1749015855496,5.29387265,156.33,156.26,10.3]
[1749015855800,14.3963059,156.29,156.26,156.3]
[1749015856092,14.3963059,156.33,156.28,14.3963059]
[1749015856268,14.3963059,156.33,156.29,39.4]
[1749015862771,27.5932,156.37,156.3,0.14216157]
[1749015862980,3.66594148,156.39,156.32,14.3963059]
[1749015863188,9.20439328,156.37,156.32,9.20439328]
[1749015863404,9.20439328,156.36,156.32,9.20439328]
[1749015864216,9.20439328,156.36,156.31,19.50439328]
[1749015865895,9.20439328,156.35,156.31,19.50439328]
[1749015868709,9.20439328,156.35,156.31,165.50439328]
[1749015869882,9.20439328,156.34,156.31,156.3]
[1749015873697,9.20439328,156.33,156.31,156.3]
[1749015874085,9.20439328,156.33,156.31,10.3]
[1749015874601,9.20439328,156.33,156.32,39.38]
[1749015876383,9.20439328,156.33,156.32,39.36]
[1749015877208,3.65912921,156.39,156.33,18.64964886]
[1749015877383,1.6414,156.41,156.33,18.64964886]
[1749015877384,9.20439328,156.37,156.33,18.64964886]
[1749015877579,9.20439328,156.36,156.32,39.50216157]
[1749015877784,9.20439328,156.36,156.32,39.36]
[1749015879005,26.0,156.4,156.32,48.56439328]
[1749015879191,14.38199269,156.37,156.32,53.74199269]
[1749015880005,14.38199269,156.36,156.32,53.74199269]
[1749015881393,14.38199269,156.37,156.32,53.74199269]
[1749015882495,14.38199269,156.37,156.33,18.933972]
[1749015884015,14.38199269,156.39,156.34,14.38199269]
[1749015884488,14.38199269,156.39,156.35,14.38199269]
[1749015884809,14.38199269,156.39,156.36,10.28]
[1749015884992,14.38199269,156.39,156.37,39.36]
[1749015887807,14.38199269,156.38,156.37,39.36]
[1749015893206,14.38199269,156.38,156.37,39.34]
[1749015900028,14.38199269,156.38,156.36,10.28]
[1749015900320,14.38199269,156.37,156.36,10.28]
[1749015900524,14.38199269,156.37,156.32,10.28]
[1749015900827,28.76398538,156.33,156.32,10.28]
[1749015901028,28.76398538,156.33,156.28,65.48]
[1749015901328,36.86675328,156.32,156.29,39.34]
[1749015901714,36.86675328,156.32,156.3,39.34]
[1749015902306,9.21668832,156.31,156.3,39.34]
[1749015903311,14.39417243,156.31,156.3,39.34]
[1749015907430,14.39417243,156.31,156.28,65.48]
[1749015907635,14.39417243,156.31,156.3,39.34]
[1749015912637,14.39417243,156.32,156.3,39.34]
[1749015913131,14.39417243,156.33,156.3,39.34]
[1749015914531,14.39417243,156.32,156.3,39.34]
[1749015914926,14.39417243,156.31,156.3,39.34]
[1749015918640,14.39417243,156.31,156.28,10.28]
[1749015918843,27.6337,156.36,156.3,39.34]
[1749015919151,14.39417243,156.31,156.3,39.34]
[1749015921025,14.39417243,156.33,156.3,39.34]
[1749015922045,14.39417243,156.33,156.3,185.34]
[1749015922436,14.39417243,156.34,156.3,185.34]
[1749015925145,14.39417243,156.35,156.31,14.39417243]
[1749015925850,14.39417243,156.34,156.3,199.73417243]
[1749015930450,26.0,156.39,156.3,199.73417243]
[1749015930755,14.39417243,156.35,156.31,33.18598286]
[1749015930951,14.39417243,156.35,156.31,179.18598286]
[1749015931545,14.39417243,156.35,156.31,164.79181043]
[1749015932955,14.39417243,156.35,156.31,179.18598286]
[1749015933677,1.6339,156.4,156.34,14.39417243]
[1749015933882,1.53,156.44,156.36,14.39417243]
[1749015934046,1.53,156.44,156.37,14.39417243]
[1749015934249,14.39417243,156.42,156.37,14.39417243]
[1749015936950,1.53,156.44,156.37,14.39417243]
[1749015937145,1.53,156.44,156.38,14.39417243]
[1749015937146,14.39417243,156.43,156.38,14.39417243]
[1749015937352,14.39417243,156.43,156.39,39.32]
[1749015937671,14.39417243,156.43,156.4,10.26]
[1749015938164,14.39417243,156.44,156.4,10.26]
[1749015939964,14.39417243,156.42,156.4,10.26]
[1749015942662,14.39417243,156.42,156.4,156.26]
[1749015945293,14.39417243,156.44,156.4,156.26]
[1749015945466,14.39417243,156.43,156.4,156.26]
[1749015946350,15.93547243,156.48,156.4,156.26]
[1749015946550,14.39417243,156.42,156.4,156.26]
[1749015948280,14.39417243,156.43,156.4,156.26]
[1749015948865,1.5413,156.48,156.4,10.26]
[1749015949174,14.39417243,156.47,156.41,18.79181043]
[1749015949351,14.39417243,156.46,156.41,18.79181043]
[1749015949553,14.39417243,156.46,156.41,33.18598286]
[1749015949983,14.39417243,156.44,156.4,21.88315677]
[1749015950152,1.5413,156.48,156.4,36.2773292]
[1749015950352,14.39417243,156.45,156.4,36.2773292]
[1749015952282,14.39417243,156.45,156.41,14.39417243]
[1749015952475,14.39417243,156.45,156.41,33.04382129]
[1749015952867,1.5413,156.48,156.42,18.79181043]
[1749015952868,14.39417243,156.46,156.42,18.79181043]
[1749015954070,1.5413,156.48,156.42,18.79181043]
[1749015954273,14.39417243,156.46,156.42,18.79181043]
[1749015954585,14.39417243,156.45,156.41,33.04382129]
[1749015954761,14.39417243,156.45,156.41,18.64964886]
[1749015956566,14.39417243,156.44,156.4,21.88315677]
[1749015956771,14.39417243,156.44,156.4,167.88315677]
[1749015956975,1.5413,156.48,156.41,14.39417243]
[1749015957173,14.39417243,156.45,156.41,14.39417243]
[1749015957390,14.39417243,156.46,156.41,33.04382129]
[1749015957559,14.39417243,156.45,156.41,33.04382129]
[1749015958059,14.39417243,156.46,156.41,33.04382129]
[1749015958659,14.39417243,156.44,156.4,36.2773292]
[1749015958865,14.39417243,156.44,156.41,39.28]
[1749015959066,14.39417243,156.43,156.4,167.88315677]
[1749015959261,14.39417243,156.43,156.42,39.28]
[1749015959682,14.39417243,156.44,156.42,39.28]
[1749015959895,1.5061,156.47,156.42,39.28]
[1749015959896,14.39417243,156.45,156.42,39.28]
[1749015961066,26.0,156.5,156.42,53.67417243]
[1749015961298,14.39417243,156.47,156.42,53.67417243]
[1749015962099,14.39417243,156.47,156.43,33.18598286]
[1749015963264,7.86793691,156.51,156.43,179.18598286]
[1749015963469,14.39417243,156.48,156.43,179.18598286]
[1749015963884,14.39417243,156.47,156.43,179.18598286]
[1749015964289,1.537,156.51,156.43,179.18598286]
[1749015964290,1.537,156.51,156.46,14.39417243]
[1749015964597,14.39417243,156.51,156.47,49.52]
[1749015965583,14.39417243,156.5,156.47,49.52]
[1749015966105,14.39417243,156.49,156.47,49.52]
[1749015968007,14.39417243,156.5,156.47,49.52]
[1749015969380,14.39417243,156.49,156.47,49.52]
[1749015969716,14.39417243,156.48,156.47,49.52]
[1749015970591,14.39417243,156.49,156.47,49.52]
[1749015970787,14.39417243,156.5,156.47,49.52]
[1749015970989,14.39417243,156.51,156.47,49.52]
[1749015971608,26.0,156.54,156.47,49.52]
[1749015971609,14.39417243,156.5,156.47,49.52]
[1749015973004,14.39417243,156.49,156.47,49.52]
[1749015973311,14.39417243,156.5,156.47,195.52]
[1749015973879,14.39417243,156.51,156.47,209.91417243]
[1749015974813,1.602,156.55,156.47,209.91417243]
[1749015974814,14.39417243,156.52,156.47,209.91417243]
[1749015975193,1.602,156.55,156.47,209.91417243]
[1749015975387,14.39417243,156.52,156.47,209.91417243]
[1749015976492,14.39417243,156.53,156.49,14.39417243]
[1749015977414,14.39417243,156.52,156.47,195.52]
[1749015977602,14.39417243,156.52,156.48,14.39417243]
[1749015978120,14.39417243,156.53,156.48,14.39417243]
[1749015978324,14.39417243,156.53,156.48,160.39417243]
[1749015978499,1.602,156.55,156.48,146.0]
[1749015978500,14.39417243,156.52,156.48,146.0]
[1749015980100,14.39417243,156.52,156.48,160.39417243]
[1749015980294,14.39417243,156.53,156.49,14.39417243]
[1749015984123,14.39417243,156.53,156.49,160.39417243]
[1749015985294,0.8432335,156.56,156.5,14.39417243]
[1749015985493,14.39417243,156.54,156.51,39.26]
[1749015985692,14.39417243,156.54,156.52,10.24]
[1749015986711,14.39417243,156.53,156.52,10.24]
[1749015989421,14.39417243,156.54,156.52,10.24]
[1749015990018,14.39417243,156.54,156.52,156.24]
[1749015991833,14.39417243,156.53,156.52,156.24]
[1749015992927,14.39417243,156.53,156.52,195.5]
[1749015995041,14.39417243,156.53,156.52,156.24]
[1749015995216,14.39417243,156.53,156.52,49.5]
[1749016002324,26.8432335,156.56,156.52,49.5]
[1749016002638,14.39417243,156.53,156.52,49.5]
[1749016008559,3.66202007,156.55,156.52,49.5]
[1749016008844,14.39417243,156.53,156.52,49.5]
[1749016010447,41.98437243,156.53,156.52,49.5]
[1749016010669,45.6463925,156.53,156.52,39.26]
[1749016010836,41.98437243,156.53,156.52,39.26]
[1749016011040,45.6463925,156.53,156.48,10.22]
[1749016011349,27.5902,156.53,156.49,39.26]
[1749016011528,31.25506936,156.53,156.49,39.26]
[1749016011849,27.5902,156.53,156.49,39.26]
[1749016012053,31.25506936,156.53,156.49,39.26]
[1749016012260,27.5902,156.53,156.49,39.26]
[1749016012549,14.39417243,156.5,156.49,39.26]
[1749016013345,31.25506936,156.53,156.48,10.22]
[1749016013522,27.5902,156.53,156.49,39.26]
[1749016013730,14.39417243,156.5,156.49,39.26]
[1749016014443,14.39417243,156.5,156.48,10.22]
[1749016014654,31.25506936,156.53,156.49,39.26]
[1749016014831,27.5902,156.53,156.49,39.26]
[1749016015449,31.25533124,156.53,156.49,39.26]
[1749016015651,27.5902,156.53,156.49,39.26]
[1749016015951,14.39417243,156.5,156.49,39.26]
[1749016020547,14.39417243,156.51,156.49,39.26]
[1749016021231,3.66513124,156.55,156.49,39.26]
[1749016021232,14.39417243,156.5,156.49,39.26]
[1749016023338,14.39417243,156.5,156.48,10.22]
[1749016023537,14.39417243,156.49,156.48,10.22]
[1749016024132,14.39417243,156.49,156.48,49.48]
[1749016024655,28.78834486,156.49,156.48,49.48]
[1749016024859,14.39417243,156.49,156.48,49.48]
[1749016025357,9.19539224,156.49,156.48,49.48]
[1749016027259,14.36643477,156.49,156.48,49.48]
[1749016029760,27.5868,156.52,156.48,49.48]
[1749016030057,14.36643477,156.49,156.48,49.48]
[1749016031158,27.5868,156.52,156.48,49.48]
[1749016031664,31.25024928,156.52,156.48,49.48]
[1749016031865,27.5868,156.52,156.48,49.48]
[1749016032270,26.0,156.51,156.48,10.22]
[1749016032566,26.0,156.51,156.49,39.26]
[1749016033438,29.66344928,156.51,156.49,39.26]
[1749016033639,14.36643477,156.5,156.49,39.26]
[1749016036564,14.36643477,156.51,156.49,39.26]
[1749016036871,14.36643477,156.5,156.49,39.26]
[1749016038350,14.36643477,156.52,156.49,39.26]
[1749016038860,14.36643477,156.53,156.49,39.26]
[1749016039059,14.36643477,156.51,156.49,39.26]
[1749016039274,3.66599369,156.55,156.49,39.26]
[1749016039570,26.8432335,156.56,156.49,39.26]
[1749016039770,14.36643477,156.52,156.49,39.26]
[1749016040071,14.36643477,156.51,156.49,39.26]
[1749016041552,14.36643477,156.52,156.49,39.26]
[1749016041970,14.36643477,156.5,156.49,39.26]
[1749016042377,14.36643477,156.52,156.49,39.26]
[1749016042688,14.36643477,156.52,156.49,185.26]
[1749016043673,14.36643477,156.54,156.49,199.62643477]
[1749016044482,0.8432335,156.56,156.5,1.6429]
[1749016044645,15.20966827,156.56,156.52,14.36643477]
[1749016044848,0.8432335,156.56,156.53,49.46]
[1749016045062,15.20966827,156.56,156.53,49.46]
[1749016045853,0.8432335,156.56,156.53,49.46]
[1749016046355,14.36643477,156.54,156.53,10.22]
[1749016046545,14.36643477,156.54,156.53,49.46]
[1749016047770,14.36643477,156.54,156.53,10.22]
[1749016047990,14.36643477,156.54,156.53,49.46]
[1749016059561,14.36643477,156.55,156.53,49.46]
[1749016059973,14.36643477,156.54,156.53,49.46]
[1749016066979,14.36643477,156.54,156.53,195.46]
[1749016068098,14.36643477,156.54,156.53,156.22]
[1749016068297,14.36643477,156.54,156.53,195.44]
[1749016069105,14.36643477,156.54,156.53,49.44]
[1749016070890,14.36643477,156.54,156.53,10.22]
[1749016071195,14.36643477,156.54,156.53,49.44]
[1749016072893,14.36643477,156.54,156.53,10.22]
[1749016073094,14.36643477,156.54,156.53,49.44]
[1749016074792,0.8432335,156.56,156.53,49.44]
[1749016074994,14.36643477,156.54,156.53,49.44]
[1749016082913,14.36643477,156.54,156.48,146.0]
[1749016083213,14.36643477,156.51,156.49,49.44]
[1749016083395,14.36643477,156.51,156.48,146.0]
[1749016083717,14.36643477,156.51,156.49,49.44]
[1749016084104,14.36643477,156.55,156.5,20.58673477]
[1749016084416,14.36643477,156.54,156.5,6.2203]
[1749016088521,14.36643477,156.55,156.5,20.58673477]
[1749016088826,14.36643477,156.54,156.5,6.2203]
[1749016088998,14.36643477,156.53,156.5,6.2203]
[1749016089196,14.36643477,156.53,156.5,152.2203]
[1749016089711,14.36643477,156.53,156.5,146.0]
[1749016092334,0.8432335,156.56,156.5,160.36643477]
[1749016092618,15.20966827,156.56,156.51,14.36643477]
[1749016092819,0.8432335,156.56,156.53,14.36643477]
[1749016092995,0.8432335,156.56,156.54,49.42]
[1749016093698,0.8432335,156.56,156.54,63.78643477]
[1749016094121,0.8432335,156.56,156.54,49.42]
[1749016094303,0.8432335,156.56,156.55,18.64964886]
[1749016094635,0.8432335,156.56,156.55,179.30040677]
[1749016097522,0.8432335,156.56,156.55,179.44256834]
[1749016099503,14.36643477,156.6,156.57,145.1567665]
[1749016099721,14.36643477,156.62,156.57,159.52320127]
[1749016100030,14.36643477,156.61,156.57,159.52320127]
[1749016100326,14.36643477,156.61,156.57,145.1567665]
[1749016102201,14.36643477,156.61,156.57,159.52320127]
[1749016102715,14.36643477,156.61,156.58,39.2]
[1749016102915,14.36643477,156.61,156.59,10.2]
[1749016103299,26.0,156.66,156.59,10.2]
[1749016103518,14.36643477,156.62,156.59,10.2]
[1749016104727,14.36643477,156.63,156.59,155.3567665]
[1749016105735,26.0,156.66,156.6,18.933972]
[1749016105930,14.36643477,156.63,156.6,18.933972]
[1749016107911,14.36643477,156.63,156.6,164.0907385]
[1749016108617,14.36643477,156.66,156.62,33.30040677]
[1749016108805,14.36643477,156.66,156.63,39.18]
[1749016109004,14.36643477,156.66,156.64,10.2]
[1749016109205,14.36643477,156.65,156.64,10.2]
[1749016109611,1.5475,156.69,156.64,10.2]
[1749016109806,14.36643477,156.66,156.64,10.2]
[1749016110011,14.36643477,156.65,156.64,10.2]
[1749016114336,14.36643477,156.65,156.64,156.2]
[1749016121847,14.36643477,156.65,156.64,195.36]
[1749016122142,14.36643477,156.65,156.64,10.2]
[1749016122341,14.36643477,156.65,156.64,49.36]
[1749016123128,14.36643477,156.65,156.64,10.2]
[1749016123329,14.36643477,156.65,156.64,49.36]
[1749016123531,28.73286954,156.65,156.64,10.2]
[1749016123935,28.73286954,156.65,156.64,49.36]
[1749016123936,30.36336954,156.65,156.64,49.36]
[1749016124142,30.36336954,156.65,156.64,10.2]
[1749016124348,30.36336954,156.65,156.64,49.36]
[1749016124562,30.36336954,156.65,156.64,10.2]
[1749016124763,30.36336954,156.65,156.64,39.16]
[1749016125055,36.42436954,156.65,156.61,10.18]
[1749016125225,14.36643477,156.62,156.61,10.18]
[1749016126039,14.36643477,156.62,156.61,49.34]
[1749016128359,14.36643477,156.62,156.58,65.28]
[1749016128657,15.91003477,156.59,156.58,10.18]
[1749016128857,15.91003477,156.59,156.58,49.34]
[1749016129734,15.91003477,156.59,156.55,10.18]
[1749016129954,28.73286954,156.56,156.55,10.18]
[1749016130932,28.73286954,156.56,156.55,49.36]
[1749016132039,28.73286954,156.56,156.55,10.18]
[1749016132240,28.73286954,156.56,156.55,49.36]
[1749016134663,14.36643477,156.56,156.55,49.36]
[1749016134978,14.36643477,156.56,156.55,195.36]
[1749016135338,1.5436,156.59,156.55,195.36]
[1749016135669,14.36643477,156.56,156.55,195.36]
[1749016137257,1.5436,156.59,156.55,195.36]
[1749016137454,14.36643477,156.56,156.55,195.36]
[1749016144197,1.5436,156.59,156.55,195.36]
[1749016144352,14.36643477,156.56,156.55,195.36]
[1749016145557,14.36643477,156.6,156.55,63.72643477]
[1749016145760,14.36643477,156.61,156.56,14.36643477]
[1749016145965,14.36643477,156.61,156.57,33.30040677]
[1749016146675,26.0,156.66,156.57,33.30040677]
[1749016146852,14.36643477,156.61,156.57,33.30040677]
[1749016147765,26.0,156.66,156.57,33.30040677]
[1749016147996,14.36643477,156.61,156.57,33.30040677]
[1749016149753,14.36643477,156.61,156.57,179.30040677]
[1749016151963,14.36643477,156.63,156.59,14.36643477]
[1749016152279,1.607,156.67,156.59,14.36643477]
[1749016152280,14.36643477,156.64,156.6,49.34]
[1749016152455,14.36643477,156.65,156.61,33.30040677]
[1749016152657,14.36643477,156.64,156.61,146.0]
[1749016152858,14.36643477,156.63,156.61,146.0]
[1749016153986,14.36643477,156.63,156.62,49.34]
[1749016154281,14.36643477,156.64,156.62,49.34]
[1749016155274,26.0,156.7,156.62,63.70643477]
[1749016155513,14.36643477,156.66,156.62,209.70643477]
[1749016155701,26.0,156.69,156.62,195.34]
[1749016155865,14.36643477,156.66,156.62,195.34]
[1749016156065,14.36643477,156.65,156.62,195.34]
[1749016160472,14.36643477,156.66,156.62,195.34]
[1749016160672,26.0,156.69,156.62,195.34]
[1749016160895,14.36643477,156.66,156.62,195.34]
[1749016161068,14.36643477,156.66,156.62,209.70643477]
[1749016161394,26.0,156.69,156.62,209.70643477]
[1749016161597,14.36643477,156.66,156.62,209.70643477]
[1749016162691,14.36643477,156.67,156.62,209.70643477]
[1749016162901,14.36643477,156.66,156.62,209.70643477]
[1749016163100,14.36643477,156.66,156.62,195.34]
[1749016163874,14.36643477,156.65,156.62,195.34]
[1749016164073,14.36643477,156.64,156.62,156.18]
[1749016164373,14.36643477,156.63,156.62,156.18]
[1749016164590,14.36643477,156.63,156.62,195.32]
[1749016165103,14.36643477,156.64,156.62,195.32]
[1749016165975,14.36643477,156.64,156.62,156.18]
[1749016166170,14.36643477,156.64,156.63,39.14]
[1749016168600,14.36643477,156.64,156.62,156.18]
[1749016168800,14.36643477,156.63,156.62,156.18]
[1749016169007,14.36643477,156.63,156.62,195.32]
[1749016171200,1.5207,156.66,156.62,195.32]
[1749016171404,14.36643477,156.64,156.62,195.32]
[1749016172777,14.36643477,156.63,156.62,195.32]
[1749016172975,6.0329,156.68,156.62,195.32]
[1749016173178,14.36643477,156.64,156.62,195.32]
[1749016174523,14.36643477,156.63,156.62,195.32]
[1749016176217,14.36643477,156.64,156.62,195.32]
[1749016176533,14.36643477,156.63,156.62,195.32]
[1749016179801,6.0329,156.68,156.62,195.32]
[1749016180000,14.36643477,156.63,156.62,195.32]
[1749016181226,9.17333477,156.63,156.62,195.32]
[1749016181706,6.0329,156.68,156.62,195.32]
[1749016181900,9.17333477,156.63,156.62,195.32]
[1749016185040,9.17333477,156.63,156.62,10.18]
[1749016185217,9.17333477,156.63,156.62,49.32]
[1749016186503,9.17333477,156.63,156.62,10.18]
[1749016187012,9.17333477,156.63,156.62,49.32]
[1749016187207,14.34211314,156.63,156.62,49.32]
[1749016188133,14.34211314,156.63,156.59,146.0]
[1749016188332,14.34211314,156.63,156.59,10.18]
[1749016188333,14.34211314,156.6,156.59,10.18]
[1749016188630,14.34211314,156.6,156.59,49.32]
[1749016188838,14.34211314,156.6,156.59,10.18]
[1749016189020,14.34211314,156.6,156.59,49.32]
[1749016192614,14.34211314,156.6,156.59,10.18]
[1749016192816,14.34211314,156.6,156.59,49.32]
[1749016198339,14.34211314,156.6,156.59,10.18]
[1749016198842,14.34211314,156.6,156.59,49.32]
[1749016199146,15.92891314,156.6,156.56,10.18]
[1749016199441,14.34211314,156.57,156.56,10.18]
[1749016200224,28.68422628,156.57,156.56,10.18]
[1749016200423,28.68422628,156.57,156.56,49.32]
[1749016200831,28.68422628,156.57,156.56,10.18]
[1749016201024,28.68422628,156.57,156.56,49.32]
[1749016201426,28.68422628,156.57,156.56,10.18]
[1749016201640,28.68422628,156.57,156.56,49.32]
[1749016202426,14.34211314,156.57,156.56,49.32]
[1749016203523,28.68422628,156.57,156.56,49.32]
[1749016203824,6.0208,156.63,156.56,49.32]
[1749016204028,15.91041314,156.64,156.56,63.66211314]
[1749016204231,14.34211314,156.61,156.57,32.991762]
[1749016204649,14.34211314,156.61,156.57,18.64964886]
[1749016204839,14.34211314,156.6,156.57,18.64964886]
[1749016206127,1.5683,156.68,156.6,18.64964886]
[1749016206343,14.34211314,156.72,156.62,32.991762]
[1749016206547,14.34211314,156.67,156.63,14.48427471]
[1749016207232,14.34211314,156.67,156.63,0.28432314]
[1749016208447,14.34211314,156.67,156.63,0.36432314]
[1749016209658,14.34211314,156.68,156.64,14.34211314]
[1749016209857,14.34211314,156.68,156.65,39.12]
[1749016210173,14.34211314,156.67,156.66,10.18]
[1749016211345,40.34211314,156.72,156.66,10.18]
[1749016211558,14.34211314,156.68,156.66,10.18]
[1749016214064,1.6338,156.73,156.66,10.18]
[1749016214065,14.34211314,156.69,156.66,10.18]
[1749016214645,14.34211314,156.69,156.66,13.3425821]
[1749016217964,14.34211314,156.69,156.66,159.3425821]
[1749016219272,1.6338,156.73,156.66,159.3425821]
[1749016219476,14.34211314,156.7,156.66,159.3425821]
[1749016219763,14.34211314,156.71,156.66,173.68469524]
[1749016220062,14.34211314,156.71,156.67,14.34211314]
[1749016222684,1.5615,156.77,156.68,14.34211314]
[1749016222987,14.34211314,156.72,156.69,39.1]
[1749016223149,14.34211314,156.72,156.69,185.1]
[1749016226073,1.5067,156.81,156.71,14.34211314]
[1749016226389,26.0,156.8,156.73,14.34211314]
[1749016226575,14.34211314,156.78,156.74,39.1]
[1749016229348,14.34211314,156.77,156.74,39.1]
[1749016229647,14.34211314,156.75,156.74,39.1]
[1749016230877,14.34211314,156.75,156.72,10.16]
[1749016231056,14.34211314,156.75,156.73,39.1]
[1749016231978,14.34211314,156.76,156.73,39.1]
[1749016233365,14.34211314,156.75,156.73,39.1]
[1749016233855,40.34211314,156.8,156.72,10.16]
[1749016233856,14.34211314,156.74,156.72,10.16]
[1749016234178,40.34211314,156.8,156.73,39.08]
[1749016234472,40.34211314,156.8,156.74,39.08]
[1749016235273,14.34211314,156.75,156.74,39.08]
[1749016235473,14.34211314,156.75,156.74,185.08]
[1749016235975,26.0,156.8,156.74,185.08]
[1749016236177,14.34211314,156.76,156.74,185.08]
[1749016237457,26.0,156.8,156.74,185.08]
[1749016237662,1.5067,156.81,156.74,185.08]
[1749016237852,14.34211314,156.77,156.74,185.08]
[1749016238855,14.34211314,156.76,156.74,185.08]
[1749016239057,14.34211314,156.75,156.74,146.0]
[1749016239366,14.34211314,156.75,156.66,4.6777821]
[1749016239367,14.34211314,156.75,156.68,152.4331]
[1749016239580,14.34211314,156.7,156.67,10.16]
[1749016239765,14.34211314,156.72,156.68,39.08]
[1749016239972,14.34211314,156.69,156.67,10.16]
[1749016240173,14.34211314,156.68,156.67,10.16]
[1749016240477,14.34211314,156.68,156.67,49.24]
[1749016241181,14.34211314,156.68,156.67,10.16]
[1749016241359,14.34211314,156.68,156.67,49.24]
[1749016247783,14.34211314,156.72,156.67,49.24]
[1749016248084,14.34211314,156.68,156.67,49.24]
[1749016250366,14.34211314,156.68,156.67,195.24]
[1749016251087,14.34211314,156.72,156.67,195.24]
[1749016251280,14.34211314,156.68,156.67,195.24]
[1749016251987,26.0,156.72,156.67,195.24]
[1749016252186,14.34211314,156.69,156.67,195.24]
[1749016252389,14.34211314,156.68,156.67,195.24]
[1749016258704,14.34211314,156.69,156.67,195.24]
[1749016260190,14.34211314,156.68,156.67,195.24]
[1749016262587,14.34211314,156.69,156.67,195.24]
[1749016262991,26.0,156.72,156.67,195.24]
[1749016263302,14.34211314,156.69,156.67,195.24]
[1749016263895,27.5739,156.74,156.67,195.24]
[1749016264205,14.34211314,156.71,156.67,209.58211314]
[1749016268887,14.34211314,156.71,156.67,195.24]
[1749016271604,32.3266,156.76,156.67,195.24]
[1749016271790,14.34211314,156.71,156.67,195.24]
[1749016273616,14.34211314,156.71,156.67,209.58211314]
[1749016274106,14.34211314,156.71,156.67,195.24]
[1749016278506,32.3266,156.76,156.67,195.24]
[1749016278708,14.34211314,156.71,156.67,195.24]
[1749016279729,14.34211314,156.68,156.67,156.14]
[1749016279921,14.34211314,156.68,156.67,195.22]
[1749016280526,14.34211314,156.68,156.67,156.14]
[1749016280711,14.34211314,156.68,156.67,195.22]
[1749016282418,14.34211314,156.68,156.67,195.22]
[1749016290914,14.34211314,156.69,156.67,195.22]
[1749016292744,1.5711,156.72,156.67,156.14]
[1749016292745,14.34211314,156.68,156.67,156.14]
[1749016292943,14.34211314,156.68,156.67,195.22]
[1749016297547,1.5711,156.72,156.67,195.22]
[1749016297718,14.34211314,156.68,156.67,195.22]
[1749016305437,9.16957021,156.68,156.67,195.22]
[1749016306726,9.16957021,156.68,156.67,49.22]
[1749016307320,14.33152143,156.68,156.67,49.22]
[1749016307521,14.33152143,156.68,156.67,10.14]
[1749016307734,14.33152143,156.68,156.67,49.22]
[1749016308035,14.33152143,156.68,156.67,10.14]
[1749016308623,14.33152143,156.68,156.67,49.22]
[1749016316138,26.0,156.71,156.67,49.22]
[1749016316454,14.33152143,156.68,156.67,49.22]
[1749016318848,26.0,156.71,156.67,49.22]
[1749016319149,14.33152143,156.68,156.67,49.22]
[1749016321246,14.33152143,156.69,156.67,49.22]
[1749016321652,14.33152143,156.68,156.67,49.22]
[1749016324324,14.33152143,156.68,156.67,195.22]
[1749016324955,26.0,156.71,156.67,195.22]
[1749016324956,14.33152143,156.69,156.67,195.22]
[1749016328033,1.5711,156.72,156.67,195.22]
[1749016328350,14.33152143,156.69,156.67,195.22]
[1749016329225,9.16750033,156.69,156.67,195.22]
[1749016337135,1.5711,156.72,156.67,195.22]
[1749016337136,9.16750033,156.68,156.67,195.22]